[Event "Argentine Superior Chess Championship 2023"]
[Site "https://www.chess.com"]
[Date "2023.11.02"]
[Round "6"]
[White "Silva, Luca"]
[Black "Peralta, Fernando"]
[Result "0-1"]
[Board "1"]
[TimeControl "5400+30"]
[WhiteFideId "147370"]
[BlackFideId "105309"]
[WhiteElo "2287"]
[BlackElo "2580"]
[WhiteTeam "ARG"]
[BlackTeam "ARG"]
[WhiteClock "0:31:27"]
[BlackClock "0:33:54"]

1. d4 {[%clk 1:30:53]}  Nf6 {[%clk 1:30:45]} 2. c4 {[%clk 1:31:13]}  e6 {[%clk 1:31:07]} 3. Nf3 {[%clk 1:31:38]}  d5 {[%clk 1:31:12]} 4. g3 {[%clk 1:32:02]}  Bb4+ {[%clk 1:31:27]} 5. Bd2 {[%clk 1:32:26]}  Be7 {[%clk 1:31:49]} 6. Bg2 {[%clk 1:32:49]}  O-O {[%clk 1:32:11]} 7. Qc2 {[%clk 1:32:09]}  c6 {[%clk 1:31:44]} 8. O-O {[%clk 1:31:22]}  Nbd7 {[%clk 1:32:03]} 9. Bf4 {[%clk 1:31:23]}  a5 {[%clk 1:32:05]} 10. Rd1 {[%clk 1:29:57]}  a4 {[%clk 1:32:23]} 11. h4 {[%clk 1:27:18]}  h6 {[%clk 1:29:56]} 12. Nbd2 {[%clk 1:26:33]}  Nh5 {[%clk 1:27:50]} 13. e3 {[%clk 1:25:30]}  f5 {[%clk 1:03:19]} 14. cxd5 {[%clk 1:09:57]}  exd5 {[%clk 1:00:33]} 15. Bh3 {[%clk 1:06:53]}  Nb6 {[%clk 0:42:40]} 16. Kh1 {[%clk 0:58:09]}  Be6 {[%clk 0:38:57]} 17. Rg1 {[%clk 0:56:30]}  Nc4 {[%clk 0:35:25]} 18. Rad1 {[%clk 0:40:49]}  Nd6 {[%clk 0:29:25]} 19. Ne5 {[%clk 0:35:17]}  Qe8 {[%clk 0:29:37]} 20. Ndf3 {[%clk 0:27:01]}  a3 {[%clk 0:24:25]} 21. b3 {[%clk 0:23:22]}  Rc8 {[%clk 0:24:46]} 22. Nd3 {[%clk 0:22:18]}  Ne4 {[%clk 0:23:12]} 23. Nc5 {[%clk 0:15:32]}  Nxc5 {[%clk 0:18:11]} 24. dxc5 {[%clk 0:15:58]}  Bd7 {[%clk 0:17:47]} 25. Be5 {[%clk 0:09:43]}  Nf6 {[%clk 0:17:16]} 26. Bxf5 {[%clk 0:03:30]}  Bxf5 {[%clk 0:14:36]} 27. Qxf5 {[%clk 0:03:56]}  Ne4 {[%clk 0:14:46]} 28. Qe6+ {[%clk 0:03:30]}  Qf7 {[%clk 0:11:48]} 29. Qxf7+ {[%clk 0:01:58]}  Rxf7 {[%clk 0:12:14]} 30. Kg2 {[%clk 0:02:17]}  Rcf8 {[%clk 0:12:07]} 31. Bf4 {[%clk 0:02:38]}  g5 {[%clk 0:12:08]} 32. hxg5 {[%clk 0:02:22]}  hxg5 {[%clk 0:12:35]} 33. Ne5 {[%clk 0:02:31]}  gxf4 {[%clk 0:12:42]} 34. gxf4 {[%clk 0:02:48]}  Rg7+ {[%clk 0:08:07]} 35. Kf3 {[%clk 0:03:15]}  Bf6 {[%clk 0:07:38]} 36. Ng6 {[%clk 0:01:01]}  Nc3 {[%clk 0:04:22]} 37. Nxf8 {[%clk 0:00:36]}  Kxf8 {[%clk 0:03:48]} 38. Rxg7 {[%clk 0:00:49]}  Bxg7 {[%clk 0:04:09]} 39. Rd2 {[%clk 0:01:01]}  Ne4 {[%clk 0:04:07]} 40. Rc2 {[%clk 0:31:27]}  Bb2 {[%clk 0:33:54]} 0-1

[Event "Argentine Superior Chess Championship 2023"]
[Site "https://www.chess.com"]
[Date "2023.11.02"]
[Round "6"]
[White "Perez Ponsa, Federico"]
[Black "Krysa, Leandro"]
[Result "1/2-1/2"]
[Board "2"]
[TimeControl "5400+30"]
[WhiteFideId "117927"]
[BlackFideId "116807"]
[WhiteElo "2527"]
[BlackElo "2546"]
[WhiteTeam "ARG"]
[BlackTeam "ARG"]
[WhiteClock "0:22:46"]
[BlackClock "0:30:16"]

1. d4 {[%clk 1:20:41]}  d5 {[%clk 1:29:36]} 2. Nf3 {[%clk 1:20:37]}  Nf6 {[%clk 1:27:39]} 3. c4 {[%clk 1:20:58]}  c6 {[%clk 1:26:29]} 4. Nc3 {[%clk 1:20:57]}  dxc4 {[%clk 1:26:20]} 5. a4 {[%clk 1:21:05]}  a5 {[%clk 1:26:33]} 6. Ne5 {[%clk 1:16:48]}  Ng4 {[%clk 1:24:33]} 7. Nxc4 {[%clk 1:08:22]}  e5 {[%clk 1:24:46]} 8. e3 {[%clk 1:04:48]}  Be6 {[%clk 1:11:30]} 9. Be2 {[%clk 0:56:51]}  exd4 {[%clk 1:10:50]} 10. exd4 {[%clk 0:52:27]}  Na6 {[%clk 0:52:04]} 11. O-O {[%clk 0:45:11]}  Nf6 {[%clk 0:50:14]} 12. Bf4 {[%clk 0:39:18]}  Be7 {[%clk 0:49:23]} 13. Qd3 {[%clk 0:34:35]}  O-O {[%clk 0:40:46]} 14. Rad1 {[%clk 0:33:11]}  Bxc4 {[%clk 0:33:48]} 15. Qxc4 {[%clk 0:33:33]}  Nb4 {[%clk 0:34:15]} 16. Bf3 {[%clk 0:31:35]}  Nfd5 {[%clk 0:33:34]} 17. Nxd5 {[%clk 0:24:17]}  Nxd5 {[%clk 0:33:25]} 18. Bxd5 {[%clk 0:23:57]}  Qxd5 {[%clk 0:33:07]} 19. Qxd5 {[%clk 0:23:42]}  cxd5 {[%clk 0:33:31]} 20. Rc1 {[%clk 0:21:50]}  Rfc8 {[%clk 0:29:23]} 21. Rxc8+ {[%clk 0:20:48]}  Rxc8 {[%clk 0:29:46]} 22. Rc1 {[%clk 0:21:13]}  Rxc1+ {[%clk 0:29:20]} 23. Bxc1 {[%clk 0:21:39]}  Bb4 {[%clk 0:28:38]} 24. Be3 {[%clk 0:21:46]}  Bd6 {[%clk 0:28:46]} 25. Bd2 {[%clk 0:21:48]}  Bc7 {[%clk 0:29:05]} 26. Be3 {[%clk 0:21:57]}  Bd6 {[%clk 0:29:27]} 27. Bd2 {[%clk 0:22:20]}  Bc7 {[%clk 0:29:52]} 28. Be3 {[%clk 0:22:46]}  Bd6 {[%clk 0:30:16]} 1/2-1/2

[Event "Argentine Superior Chess Championship 2023"]
[Site "https://www.chess.com"]
[Date "2023.11.02"]
[Round "6"]
[White "Tokman, Ariel"]
[Black "Valerga, Diego"]
[Result "1/2-1/2"]
[Board "3"]
[TimeControl "5400+30"]
[WhiteFideId "117420"]
[BlackFideId "100587"]
[WhiteElo "2306"]
[BlackElo "2428"]
[WhiteTeam "ARG"]
[BlackTeam "ARG"]
[WhiteClock "0:34:36"]
[BlackClock "0:27:21"]

1. d4 {[%clk 1:30:30]}  d5 {[%clk 1:30:40]} 2. c4 {[%clk 1:30:54]}  e6 {[%clk 1:31:05]} 3. Nc3 {[%clk 1:31:04]}  Be7 {[%clk 1:31:21]} 4. Nf3 {[%clk 1:31:20]}  Nf6 {[%clk 1:31:44]} 5. Bg5 {[%clk 1:31:37]}  h6 {[%clk 1:30:56]} 6. Bxf6 {[%clk 1:31:04]}  Bxf6 {[%clk 1:31:17]} 7. e3 {[%clk 1:31:12]}  O-O {[%clk 1:31:36]} 8. Rc1 {[%clk 1:31:03]}  c6 {[%clk 1:31:22]} 9. Bd3 {[%clk 1:31:13]}  Nd7 {[%clk 1:30:24]} 10. O-O {[%clk 1:31:22]}  dxc4 {[%clk 1:28:05]} 11. Bxc4 {[%clk 1:31:39]}  e5 {[%clk 1:28:24]} 12. h3 {[%clk 1:29:05]}  exd4 {[%clk 1:25:16]} 13. exd4 {[%clk 1:29:28]}  Nb6 {[%clk 1:25:40]} 14. Bb3 {[%clk 1:29:41]}  Bf5 {[%clk 1:25:32]} 15. Re1 {[%clk 1:28:20]}  Re8 {[%clk 1:19:43]} 16. Rxe8+ {[%clk 1:25:10]}  Qxe8 {[%clk 1:20:06]} 17. Qd2 {[%clk 1:25:28]}  Qd7 {[%clk 1:15:36]} 18. Qf4 {[%clk 0:59:29]}  Re8 {[%clk 0:59:21]} 19. Rd1 {[%clk 0:59:10]}  Be6 {[%clk 0:51:54]} 20. Ne4 {[%clk 0:48:37]}  Be7 {[%clk 0:46:36]} 21. Ne5 {[%clk 0:41:18]}  Qc8 {[%clk 0:45:07]} 22. Bc2 {[%clk 0:17:09]}  Nd5 {[%clk 0:36:50]} 23. Qf3 {[%clk 0:16:55]}  Qc7 {[%clk 0:36:06]} 24. Bb3 {[%clk 0:13:55]}  Bf8 {[%clk 0:26:06]} 25. Qg3 {[%clk 0:12:21]}  Qd8 {[%clk 0:26:28]} 26. Qf3 {[%clk 0:11:56]}  Qc7 {[%clk 0:18:27]} 27. a3 {[%clk 0:06:52]}  Qb6 {[%clk 0:08:32]} 28. Qg3 {[%clk 0:07:01]}  Qd8 {[%clk 0:08:55]} 29. Bc2 {[%clk 0:06:50]}  g6 {[%clk 0:04:42]} 30. Nc5 {[%clk 0:03:37]}  Bxc5 {[%clk 0:04:40]} 31. dxc5 {[%clk 0:03:34]}  Qf6 {[%clk 0:04:53]} 32. Re1 {[%clk 0:03:22]}  Qf4 {[%clk 0:03:01]} 33. Qxf4 {[%clk 0:03:35]}  Nxf4 {[%clk 0:03:24]} 34. Nc4 {[%clk 0:04:00]}  Rd8 {[%clk 0:02:33]} 35. Nd6 {[%clk 0:03:50]}  b6 {[%clk 0:02:05]} 36. b4 {[%clk 0:04:09]}  bxc5 {[%clk 0:01:41]} 37. bxc5 {[%clk 0:04:35]}  Bd5 {[%clk 0:01:56]} 38. Be4 {[%clk 0:04:14]}  Bxe4 {[%clk 0:01:36]} 39. Rxe4 {[%clk 0:04:09]}  Ne6 {[%clk 0:01:59]} 40. Nb7 {[%clk 0:34:10]}  Rd1+ {[%clk 0:32:07]} 41. Kh2 {[%clk 0:34:36]}  Rc1 {[%clk 0:27:21]} 1/2-1/2

[Event "Argentine Superior Chess Championship 2023"]
[Site "https://www.chess.com"]
[Date "2023.11.02"]
[Round "6"]
[White "Acosta, Pablo Ismael"]
[Black "Francisco Guecamburu, Candela Be"]
[Result "1-0"]
[Board "4"]
[TimeControl "5400+30"]
[WhiteFideId "124311"]
[BlackFideId "160911"]
[WhiteElo "2482"]
[BlackElo "2345"]
[WhiteTeam "ARG"]
[BlackTeam "ARG"]
[WhiteClock "0:29:07"]
[BlackClock "0:07:23"]

1. c4 {[%clk 1:29:53]}  c5 {[%clk 1:30:39]} 2. Nf3 {[%clk 1:28:43]}  Nc6 {[%clk 1:29:30]} 3. Nc3 {[%clk 1:27:21]}  Nf6 {[%clk 1:28:42]} 4. d4 {[%clk 1:27:28]}  cxd4 {[%clk 1:29:03]} 5. Nxd4 {[%clk 1:27:52]}  e6 {[%clk 1:24:14]} 6. Ndb5 {[%clk 1:22:32]}  d6 {[%clk 1:07:42]} 7. Bf4 {[%clk 1:19:31]}  e5 {[%clk 1:07:00]} 8. Bg5 {[%clk 1:19:24]}  a6 {[%clk 1:06:03]} 9. Bxf6 {[%clk 1:10:59]}  gxf6 {[%clk 1:06:24]} 10. Na3 {[%clk 1:11:26]}  Be6 {[%clk 0:56:03]} 11. e3 {[%clk 1:09:41]}  f5 {[%clk 0:50:27]} 12. Qd2 {[%clk 1:07:28]}  Qa5 {[%clk 0:38:02]} 13. Rc1 {[%clk 1:04:51]}  O-O-O {[%clk 0:33:21]} 14. Nd5 {[%clk 0:59:36]}  Qxd2+ {[%clk 0:33:38]} 15. Kxd2 {[%clk 1:00:00]}  Kb8 {[%clk 0:32:36]} 16. g3 {[%clk 0:48:38]}  Ne7 {[%clk 0:25:54]} 17. Bg2 {[%clk 0:46:23]}  e4 {[%clk 0:22:11]} 18. Bh3 {[%clk 0:46:09]}  Nxd5 {[%clk 0:19:24]} 19. cxd5 {[%clk 0:46:17]}  Bxd5 {[%clk 0:19:29]} 20. Bxf5 {[%clk 0:40:36]}  Bxa2 {[%clk 0:13:21]} 21. Bxe4 {[%clk 0:40:41]}  Bg7 {[%clk 0:08:17]} 22. b3 {[%clk 0:33:43]}  d5 {[%clk 0:08:20]} 23. Bc2 {[%clk 0:27:17]}  Bb2 {[%clk 0:08:23]} 24. Ra1 {[%clk 0:27:38]}  Bxa3 {[%clk 0:08:49]} 25. Rxa2 {[%clk 0:28:02]}  Bb4+ {[%clk 0:07:52]} 26. Ke2 {[%clk 0:26:03]}  d4 {[%clk 0:06:51]} 27. Rd1 {[%clk 0:15:01]}  dxe3 {[%clk 0:06:20]} 28. Kxe3 {[%clk 0:15:10]}  Bc5+ {[%clk 0:04:52]} 29. Kf4 {[%clk 0:14:07]}  Bxf2 {[%clk 0:02:26]} 30. Rxd8+ {[%clk 0:14:32]}  Rxd8 {[%clk 0:02:52]} 31. Bxh7 {[%clk 0:14:56]}  Bc5 {[%clk 0:01:02]} 32. Be4 {[%clk 0:14:23]}  Rd6 {[%clk 0:00:54]} 33. h4 {[%clk 0:14:13]}  b5 {[%clk 0:01:01]} 34. h5 {[%clk 0:13:06]}  Kc7 {[%clk 0:00:58]} 35. g4 {[%clk 0:12:45]}  Kb6 {[%clk 0:00:55]} 36. g5 {[%clk 0:12:00]}  a5 {[%clk 0:01:00]} 37. h6 {[%clk 0:11:18]}  Bd4 {[%clk 0:00:38]} 38. h7 {[%clk 0:09:40]}  Rd8 {[%clk 0:00:34]} 39. Rc2 {[%clk 0:08:41]}  a4 {[%clk 0:00:34]} 40. bxa4 {[%clk 0:39:02]}  bxa4 {[%clk 0:31:03]} 41. Rc4 {[%clk 0:39:16]}  Bc5 {[%clk 0:17:45]} 42. Rxa4 {[%clk 0:39:22]}  Kb5 {[%clk 0:18:03]} 43. Ra1 {[%clk 0:37:03]}  Bd4 {[%clk 0:17:46]} 44. Rc1 {[%clk 0:35:35]}  Rf8 {[%clk 0:13:08]} 45. Rc7 {[%clk 0:33:46]}  Kb6 {[%clk 0:13:00]} 46. Rd7 {[%clk 0:32:51]}  Kc5 {[%clk 0:12:51]} 47. Bd5 {[%clk 0:32:43]}  Bg7 {[%clk 0:11:12]} 48. Kf5 {[%clk 0:31:12]}  Bh8 {[%clk 0:08:46]} 49. Bxf7 {[%clk 0:30:55]}  Kc6 {[%clk 0:09:10]} 50. Ke6 {[%clk 0:29:59]}  Bg7 {[%clk 0:08:44]} 51. Rd1 {[%clk 0:28:45]}  Kc7 {[%clk 0:08:31]} 52. Ke7 {[%clk 0:28:50]}  Ra8 {[%clk 0:07:40]} 53. Be6 {[%clk 0:28:41]}  Rf8 {[%clk 0:07:13]} 54. Rc1+ {[%clk 0:28:55]}  Kb7 {[%clk 0:07:23]} 55. Rc8 {[%clk 0:29:07]} 1-0

[Event "Argentine Superior Chess Championship 2023"]
[Site "https://www.chess.com"]
[Date "2023.11.02"]
[Round "6"]
[White "Villca, Julian"]
[Black "Tristan, Leonardo"]
[Result "1-0"]
[Board "5"]
[TimeControl "5400+30"]
[WhiteFideId "134902"]
[BlackFideId "113816"]
[WhiteElo "2383"]
[BlackElo "2523"]
[WhiteTeam "ARG"]
[BlackTeam "ARG"]
[WhiteClock "0:01:08"]
[BlackClock "0:01:07"]

1. d4 {[%clk 1:13:27]}  d5 {[%clk 1:29:43]} 2. c4 {[%clk 1:13:28]}  e6 {[%clk 1:30:01]} 3. Nf3 {[%clk 1:13:49]}  Nf6 {[%clk 1:30:09]} 4. Nc3 {[%clk 1:12:38]}  Bb4 {[%clk 1:22:56]} 5. Bg5 {[%clk 1:04:53]}  h6 {[%clk 1:22:40]} 6. Bxf6 {[%clk 1:04:54]}  Qxf6 {[%clk 1:23:05]} 7. Qb3 {[%clk 1:02:41]}  Nc6 {[%clk 0:51:38]} 8. e3 {[%clk 0:57:04]}  Qg6 {[%clk 0:32:02]} 9. cxd5 {[%clk 0:34:03]}  exd5 {[%clk 0:32:20]} 10. g3 {[%clk 0:34:25]}  Qe4 {[%clk 0:20:08]} 11. Qd1 {[%clk 0:25:33]}  Bg4 {[%clk 0:17:37]} 12. Bg2 {[%clk 0:23:46]}  Nxd4 {[%clk 0:15:56]} 13. Qxd4 {[%clk 0:23:45]}  Bxf3 {[%clk 0:16:19]} 14. Bxf3 {[%clk 0:23:38]}  Qxf3 {[%clk 0:15:29]} 15. Qe5+ {[%clk 0:22:41]}  Kf8 {[%clk 0:15:53]} 16. O-O {[%clk 0:22:33]}  Bd6 {[%clk 0:16:07]} 17. Qd4 {[%clk 0:19:28]}  h5 {[%clk 0:07:39]} 18. Qd1 {[%clk 0:18:25]}  Qf5 {[%clk 0:05:43]} 19. Qxd5 {[%clk 0:16:47]}  Qxd5 {[%clk 0:06:08]} 20. Nxd5 {[%clk 0:17:13]}  c6 {[%clk 0:06:34]} 21. Nc3 {[%clk 0:17:38]}  Ke7 {[%clk 0:06:58]} 22. Ne4 {[%clk 0:17:22]}  Rhd8 {[%clk 0:06:49]} 23. Rad1 {[%clk 0:17:27]}  Bc7 {[%clk 0:05:11]} 24. f4 {[%clk 0:15:52]}  Bb6 {[%clk 0:04:13]} 25. Kf2 {[%clk 0:16:07]}  Rd5 {[%clk 0:04:11]} 26. Nc3 {[%clk 0:14:29]}  Rdd8 {[%clk 0:03:37]} 27. Kf3 {[%clk 0:14:06]}  Ba5 {[%clk 0:02:47]} 28. Ne2 {[%clk 0:12:18]}  g6 {[%clk 0:03:00]} 29. Nc1 {[%clk 0:10:21]}  Bb6 {[%clk 0:02:41]} 30. h3 {[%clk 0:09:45]}  Ke6 {[%clk 0:02:53]} 31. Ke2 {[%clk 0:09:24]}  Kf6 {[%clk 0:02:25]} 32. Nb3 {[%clk 0:07:49]}  Re8 {[%clk 0:02:32]} 33. Rd3 {[%clk 0:07:52]}  Rad8 {[%clk 0:02:07]} 34. Rxd8 {[%clk 0:07:46]}  Rxd8 {[%clk 0:02:23]} 35. Nd2 {[%clk 0:07:39]}  Re8 {[%clk 0:02:06]} 36. Nc4 {[%clk 0:07:39]}  Bc5 {[%clk 0:00:57]} 37. Rd1 {[%clk 0:07:32]}  Ke6 {[%clk 0:01:10]} 38. Kf3 {[%clk 0:06:12]}  Rc8 {[%clk 0:01:13]} 39. e4 {[%clk 0:03:47]}  f6 {[%clk 0:01:08]} 40. Na5 {[%clk 0:32:11]}  Rc7 {[%clk 0:30:41]} 41. Nb3 {[%clk 0:28:30]}  Bb6 {[%clk 0:28:19]} 42. a4 {[%clk 0:25:45]}  a5 {[%clk 0:27:11]} 43. Rd3 {[%clk 0:24:50]}  Rc8 {[%clk 0:23:39]} 44. Nd2 {[%clk 0:20:17]}  Bc5 {[%clk 0:23:35]} 45. Nc4 {[%clk 0:20:03]}  Ra8 {[%clk 0:18:08]} 46. Nd2 {[%clk 0:16:42]}  Ke7 {[%clk 0:13:53]} 47. h4 {[%clk 0:12:56]}  Bb4 {[%clk 0:13:25]} 48. Nb3 {[%clk 0:12:44]}  Rc8 {[%clk 0:11:28]} 49. f5 {[%clk 0:11:03]}  gxf5 {[%clk 0:10:33]} 50. exf5 {[%clk 0:11:31]}  c5 {[%clk 0:09:05]} 51. Rd5 {[%clk 0:11:44]}  b6 {[%clk 0:02:35]} 52. Nc1 {[%clk 0:11:26]}  c4 {[%clk 0:03:02]} 53. Ne2 {[%clk 0:11:36]}  c3 {[%clk 0:02:55]} 54. bxc3 {[%clk 0:11:56]}  Bxc3 {[%clk 0:03:23]} 55. Nf4 {[%clk 0:10:27]}  Rc4 {[%clk 0:02:24]} 56. Rb5 {[%clk 0:08:25]}  Bd4 {[%clk 0:01:44]} 57. Nd5+ {[%clk 0:08:30]}  Kd6 {[%clk 0:00:56]} 58. Nxb6 {[%clk 0:08:18]}  Rc3+ {[%clk 0:01:13]} 59. Ke4 {[%clk 0:07:51]}  Bc5 {[%clk 0:01:24]} 60. Nc8+ {[%clk 0:04:33]}  Kc7 {[%clk 0:00:42]} 61. Kd5 {[%clk 0:04:47]}  Bb4 {[%clk 0:00:59]} 62. Nb6 {[%clk 0:04:36]}  Rxg3 {[%clk 0:00:43]} 63. Ke6 {[%clk 0:04:32]}  Kc6 {[%clk 0:00:55]} 64. Nc4 {[%clk 0:03:12]}  Rg4 {[%clk 0:00:36]} 65. Nxa5+ {[%clk 0:03:34]}  Kc7 {[%clk 0:00:52]} 66. Kxf6 {[%clk 0:03:58]}  Rxh4 {[%clk 0:01:01]} 67. Nb3 {[%clk 0:02:56]}  Rc4 {[%clk 0:00:34]} 68. a5 {[%clk 0:02:26]}  Kc6 {[%clk 0:00:33]} 69. Rb6+ {[%clk 0:02:05]}  Kc7 {[%clk 0:00:48]} 70. Kg5 {[%clk 0:01:54]}  h4 {[%clk 0:00:50]} 71. Rh6 {[%clk 0:01:54]}  Rc3 {[%clk 0:01:08]} 72. Nd4 {[%clk 0:02:15]}  Rg3+ {[%clk 0:00:58]} 73. Kxh4 {[%clk 0:02:26]}  Be1 {[%clk 0:01:26]} 74. Nb5+ {[%clk 0:02:14]}  Kc8 {[%clk 0:00:38]} 75. Rc6+ {[%clk 0:01:01]}  Kd7 {[%clk 0:01:01]} 76. Rd6+ {[%clk 0:01:25]}  Kc8 {[%clk 0:01:28]} 77. Re6 {[%clk 0:01:06]}  Rg1+ {[%clk 0:01:47]} 78. Kh5 {[%clk 0:01:18]}  Bxa5 {[%clk 0:02:14]} 79. f6 {[%clk 0:01:18]}  Kd7 {[%clk 0:00:38]} 80. Re7+ {[%clk 0:01:40]}  Kc6 {[%clk 0:00:52]} 81. Nd4+ {[%clk 0:00:40]}  Kd5 {[%clk 0:01:20]} 82. Nf5 {[%clk 0:00:44]}  Bd2 {[%clk 0:01:00]} 83. Ne3+ {[%clk 0:00:43]}  Kd6 {[%clk 0:01:07]} 84. Nc4+ {[%clk 0:01:08]} 1-0

[Event "Argentine Superior Chess Championship 2023"]
[Site "https://www.chess.com"]
[Date "2023.11.02"]
[Round "6"]
[White "Gomez, Carlos David"]
[Black "Miranda, Rafael"]
[Result "1/2-1/2"]
[Board "6"]
[TimeControl "5400+30"]
[WhiteFideId "114669"]
[BlackFideId "130990"]
[WhiteElo "2331"]
[BlackElo "2343"]
[WhiteTeam "ARG"]
[BlackTeam "ARG"]
[WhiteClock "0:26:29"]
[BlackClock "0:29:48"]

1. e4 {[%clk 1:18:35]}  c5 {[%clk 1:30:46]} 2. Nf3 {[%clk 1:18:46]}  d6 {[%clk 1:30:45]} 3. d4 {[%clk 1:19:06]}  cxd4 {[%clk 1:30:59]} 4. Nxd4 {[%clk 1:19:27]}  Nf6 {[%clk 1:31:10]} 5. Nc3 {[%clk 1:19:51]}  a6 {[%clk 1:31:16]} 6. h3 {[%clk 1:20:14]}  e5 {[%clk 1:30:27]} 7. Nf3 {[%clk 1:20:25]}  h6 {[%clk 1:22:01]} 8. g4 {[%clk 1:20:06]}  Be7 {[%clk 1:13:02]} 9. Rg1 {[%clk 1:19:32]}  Qc7 {[%clk 1:10:46]} 10. g5 {[%clk 1:19:37]}  hxg5 {[%clk 1:10:46]} 11. Nxg5 {[%clk 1:20:00]}  Nbd7 {[%clk 1:06:32]} 12. Be3 {[%clk 1:12:22]}  b5 {[%clk 0:56:01]} 13. a4 {[%clk 0:56:14]}  b4 {[%clk 0:54:18]} 14. Nd5 {[%clk 0:55:29]}  Nxd5 {[%clk 0:54:39]} 15. Qxd5 {[%clk 0:55:49]}  Bxg5 {[%clk 0:54:59]} 16. Rxg5 {[%clk 0:56:00]}  Bb7 {[%clk 0:55:09]} 17. Qb3 {[%clk 0:56:09]}  Bxe4 {[%clk 0:50:07]} 18. Rxg7 {[%clk 0:53:48]}  Nf6 {[%clk 0:49:15]} 19. O-O-O {[%clk 0:36:20]}  Kf8 {[%clk 0:43:59]} 20. Rg3 {[%clk 0:33:53]}  Rc8 {[%clk 0:42:41]} 21. Bd3 {[%clk 0:33:35]}  a5 {[%clk 0:20:37]} 22. Bxe4 {[%clk 0:19:13]}  Nxe4 {[%clk 0:21:06]} 23. Rg4 {[%clk 0:19:18]}  Nf6 {[%clk 0:16:45]} 24. Rg3 {[%clk 0:17:12]}  Ne4 {[%clk 0:16:09]} 25. Rf3 {[%clk 0:17:24]}  Qc4 {[%clk 0:15:33]} 26. Qxc4 {[%clk 0:16:50]}  Rxc4 {[%clk 0:15:24]} 27. b3 {[%clk 0:17:09]}  Rc3 {[%clk 0:09:49]} 28. Rd3 {[%clk 0:14:41]}  Rg8 {[%clk 0:07:56]} 29. Bb6 {[%clk 0:12:38]}  Rg1+ {[%clk 0:05:12]} 30. Kb2 {[%clk 0:13:01]}  Rxd3 {[%clk 0:04:52]} 31. cxd3 {[%clk 0:13:16]}  Nc3 {[%clk 0:04:29]} 32. Bxa5 {[%clk 0:13:10]}  Nd5 {[%clk 0:04:59]} 33. d4 {[%clk 0:08:05]}  Ke7 {[%clk 0:05:27]} 34. dxe5 {[%clk 0:08:28]}  dxe5 {[%clk 0:05:56]} 35. Rd3 {[%clk 0:08:49]}  Ke6 {[%clk 0:06:17]} 36. Bd8 {[%clk 0:02:54]}  Rg8 {[%clk 0:05:47]} 37. Bh4 {[%clk 0:03:00]}  f5 {[%clk 0:05:33]} 38. Rg3 {[%clk 0:01:14]}  Rh8 {[%clk 0:05:15]} 39. Rg6+ {[%clk 0:00:40]}  Kd7 {[%clk 0:03:57]} 40. Bf6 {[%clk 0:30:45]}  Nxf6 {[%clk 0:31:55]} 41. Rxf6 {[%clk 0:31:06]}  f4 {[%clk 0:32:15]} 42. a5 {[%clk 0:27:35]}  Rxh3 {[%clk 0:31:07]} 43. a6 {[%clk 0:26:29]}  Kc7 {[%clk 0:29:48]} 1/2-1/2

[Event "Argentine Superior Chess Championship 2023"]
[Site "https://www.chess.com"]
[Date "2023.11.03"]
[Round "7"]
[White "Peralta, Fernando"]
[Black "Villca, Julian"]
[Result "1-0"]
[Board "1"]
[TimeControl "5400+30"]
[WhiteFideId "105309"]
[BlackFideId "134902"]
[WhiteElo "2580"]
[BlackElo "2383"]
[WhiteTeam "ARG"]
[BlackTeam "ARG"]
[WhiteClock "0:00:44"]
[BlackClock "0:28:14"]

1. d4 {[%clk 1:30:58]}  d5 {[%clk 1:24:30]} 2. c4 {[%clk 1:31:19]}  e6 {[%clk 1:24:55]} 3. Nc3 {[%clk 1:31:32]}  Nf6 {[%clk 1:25:12]} 4. cxd5 {[%clk 1:31:51]}  exd5 {[%clk 1:25:32]} 5. Bg5 {[%clk 1:32:14]}  Be7 {[%clk 1:24:24]} 6. e3 {[%clk 1:32:34]}  O-O {[%clk 1:23:52]} 7. Bd3 {[%clk 1:32:56]}  c6 {[%clk 1:23:04]} 8. Nge2 {[%clk 1:32:47]}  Nbd7 {[%clk 1:20:08]} 9. O-O {[%clk 1:32:55]}  Ne4 {[%clk 1:08:55]} 10. Bf4 {[%clk 1:20:42]}  Ndf6 {[%clk 1:08:37]} 11. Nxe4 {[%clk 1:11:29]}  dxe4 {[%clk 1:05:32]} 12. Bc4 {[%clk 1:10:29]}  Nd5 {[%clk 1:04:03]} 13. Bxd5 {[%clk 0:46:26]}  cxd5 {[%clk 0:46:51]} 14. Qb3 {[%clk 0:32:43]}  b6 {[%clk 0:46:25]} 15. Rfc1 {[%clk 0:31:59]}  Ba6 {[%clk 0:45:29]} 16. Nc3 {[%clk 0:32:19]}  Bc4 {[%clk 0:45:25]} 17. Qa4 {[%clk 0:32:39]}  b5 {[%clk 0:13:22]} 18. Nxb5 {[%clk 0:30:29]}  Qd7 {[%clk 0:12:48]} 19. Nc3 {[%clk 0:30:00]}  Qxa4 {[%clk 0:12:27]} 20. Nxa4 {[%clk 0:30:25]}  Rfc8 {[%clk 0:12:14]} 21. Nc5 {[%clk 0:26:07]}  g5 {[%clk 0:11:21]} 22. Bg3 {[%clk 0:25:37]}  a5 {[%clk 0:09:31]} 23. b3 {[%clk 0:20:12]}  Bxc5 {[%clk 0:09:26]} 24. dxc5 {[%clk 0:20:26]}  Bb5 {[%clk 0:09:50]} 25. h4 {[%clk 0:11:58]}  h6 {[%clk 0:09:59]} 26. Be5 {[%clk 0:08:58]}  Rc6 {[%clk 0:10:23]} 27. hxg5 {[%clk 0:06:42]}  hxg5 {[%clk 0:10:52]} 28. Bd6 {[%clk 0:06:48]}  Kg7 {[%clk 0:10:07]} 29. Rd1 {[%clk 0:06:43]}  Bd3 {[%clk 0:10:31]} 30. f3 {[%clk 0:04:23]}  f6 {[%clk 0:09:27]} 31. Kf2 {[%clk 0:04:27]}  Rh8 {[%clk 0:09:37]} 32. Rh1 {[%clk 0:03:55]}  Rxh1 {[%clk 0:09:53]} 33. Rxh1 {[%clk 0:04:21]}  Rc8 {[%clk 0:10:18]} 34. Rc1 {[%clk 0:03:58]}  Bb5 {[%clk 0:09:59]} 35. f4 {[%clk 0:01:35]}  Kg6 {[%clk 0:09:59]} 36. fxg5 {[%clk 0:01:15]}  fxg5 {[%clk 0:10:17]} 37. Ke1 {[%clk 0:01:04]}  d4 {[%clk 0:08:31]} 38. a4 {[%clk 0:00:47]}  Ba6 {[%clk 0:06:59]} 39. exd4 {[%clk 0:00:54]}  e3 {[%clk 0:07:28]} 40. Rc3 {[%clk 0:30:38]}  e2 {[%clk 0:36:39]} 41. Kd2 {[%clk 0:20:03]}  Kf5 {[%clk 0:32:25]} 42. Re3 {[%clk 0:20:02]}  Rh8 {[%clk 0:30:19]} 43. Bg3 {[%clk 0:09:35]}  Rd8 {[%clk 0:26:31]} 44. Kc3 {[%clk 0:08:30]}  Rh8 {[%clk 0:26:22]} 45. c6 {[%clk 0:07:06]}  Rh1 {[%clk 0:26:36]} 46. c7 {[%clk 0:06:08]}  Kg4 {[%clk 0:26:40]} 47. d5 {[%clk 0:01:45]}  Rd1 {[%clk 0:27:05]} 48. d6 {[%clk 0:01:34]}  Rd5 {[%clk 0:27:33]} 49. Kc2 {[%clk 0:00:46]}  Rd4 {[%clk 0:27:26]} 50. Be1 {[%clk 0:00:35]}  Rxd6 {[%clk 0:26:43]} 51. Bxa5 {[%clk 0:00:45]}  Rd5 {[%clk 0:26:16]} 52. Bb4 {[%clk 0:00:44]}  Rd7 {[%clk 0:26:34]} 53. Ba5 {[%clk 0:00:37]}  Rd5 {[%clk 0:27:03]} 54. Be1 {[%clk 0:00:32]}  Rd7 {[%clk 0:27:06]} 55. Re4+ {[%clk 0:00:43]}  Kf5 {[%clk 0:27:24]} 56. Rc4 {[%clk 0:01:07]}  Rd1 {[%clk 0:27:17]} 57. g4+ {[%clk 0:00:31]}  Ke6 {[%clk 0:27:25]} 58. c8=Q+ {[%clk 0:00:32]}  Bxc8 {[%clk 0:27:36]} 59. Rxc8 {[%clk 0:00:35]}  Kd7 {[%clk 0:27:50]} 60. Rc5 {[%clk 0:00:32]}  Rxe1 {[%clk 0:28:12]} 61. Kd2 {[%clk 0:00:32]}  Rg1 {[%clk 0:27:42]} 62. Kxe2 {[%clk 0:01:00]}  Rxg4 {[%clk 0:28:07]} 63. Kd3 {[%clk 0:01:12]}  Rg1 {[%clk 0:27:51]} 64. Kc4 {[%clk 0:00:45]}  Kd6 {[%clk 0:28:14]} 65. Kb5 {[%clk 0:00:44]} 1-0